[Event "Early-Titled-Tuesday-Blitz-September-26-2023"]
[Site "Chess.com"]
[Date "2023.09.26"]
[Round "9"]
[White "sergoy"]
[Black "Msb2"]
[Result "1-0"]
[WhiteElo "2938"]
[BlackElo "3077"]
[TimeControl "180+1"]
[EndTime "9:45:34 PDT"]
[Termination "sergoy won on time"]

1. d4 {[%clk 0:03:00.9]} 1... d5 {[%clk 0:02:59.8]} 2. c4 {[%clk 0:02:59.5]}
2... e6 {[%clk 0:03:00.3]} 3. Nf3 {[%clk 0:03:00]} 3... Nf6 {[%clk 0:03:00.8]}
4. g3 {[%clk 0:03:00.2]} 4... Nc6 {[%clk 0:03:00.8]} 5. Bg2 {[%clk 0:02:59.9]}
5... Bd6 {[%clk 0:03:01.5]} 6. O-O {[%clk 0:02:59.7]} 6... O-O {[%clk
0:03:02.1]} 7. b3 {[%clk 0:03:00.4]} 7... dxc4 {[%clk 0:02:59.8]} 8. bxc4 {[%clk
0:03:01.3]} 8... e5 {[%clk 0:03:00.7]} 9. c5 {[%clk 0:03:01.9]} 9... Be7 {[%clk
0:03:01.1]} 10. dxe5 {[%clk 0:02:58.1]} 10... Qxd1 {[%clk 0:03:02]} 11. Rxd1
{[%clk 0:02:58.8]} 11... Ne4 {[%clk 0:03:02.9]} 12. Bb2 {[%clk 0:02:34.3]} 12...
Bxc5 {[%clk 0:02:58.3]} 13. e3 {[%clk 0:02:34.8]} 13... Bg4 {[%clk 0:02:16.9]}
14. h3 {[%clk 0:02:31.3]} 14... Bxf3 {[%clk 0:02:14.5]} 15. Bxf3 {[%clk
0:02:30.7]} 15... Ng5 {[%clk 0:02:15.4]} 16. Bxc6 {[%clk 0:02:12.5]} 16... bxc6
{[%clk 0:02:16.3]} 17. Nd2 {[%clk 0:02:12.2]} 17... Nxh3+ {[%clk 0:02:08.1]} 18.
Kg2 {[%clk 0:02:11.8]} 18... Ng5 {[%clk 0:02:09]} 19. Rac1 {[%clk 0:02:12]}
19... Ne6 {[%clk 0:02:07.4]} 20. Nb3 {[%clk 0:02:11.6]} 20... Bb6 {[%clk
0:02:04.6]} 21. Rxc6 {[%clk 0:02:11.4]} 21... Rfd8 {[%clk 0:02:04.9]} 22. Rxd8+
{[%clk 0:01:55.8]} 22... Rxd8 {[%clk 0:02:05.8]} 23. Nd4 {[%clk 0:01:52.9]}
23... Nxd4 {[%clk 0:01:45.9]} 24. Bxd4 {[%clk 0:01:53.8]} 24... g6 {[%clk
0:01:26.5]} 25. Bxb6 {[%clk 0:01:46.3]} 25... cxb6 {[%clk 0:01:27.4]} 26. Rc7
{[%clk 0:01:46.5]} 26... Rd5 {[%clk 0:01:27.7]} 27. e6 {[%clk 0:01:46.5]} 27...
fxe6 {[%clk 0:01:26.2]} 28. Rxa7 {[%clk 0:01:46.6]} 28... Rd2 {[%clk 0:01:11.8]}
29. g4 {[%clk 0:01:41.5]} 29... h5 {[%clk 0:01:00.7]} 30. gxh5 {[%clk
0:01:30.9]} 30... gxh5 {[%clk 0:01:01.6]} 31. Re7 {[%clk 0:01:28.3]} 31... Rd6
{[%clk 0:01:01.4]} 32. Kg3 {[%clk 0:01:28]} 32... Kf8 {[%clk 0:01:00.7]} 33. Rb7
{[%clk 0:01:28.2]} 33... Ke8 {[%clk 0:00:54.1]} 34. a4 {[%clk 0:01:24.3]} 34...
Kd8 {[%clk 0:00:53]} 35. Kh4 {[%clk 0:01:18.3]} 35... Kc8 {[%clk 0:00:52.3]} 36.
Re7 {[%clk 0:01:16.1]} 36... Kd8 {[%clk 0:00:52.4]} 37. Rb7 {[%clk 0:00:48.8]}
37... Kc8 {[%clk 0:00:52.2]} 38. Rf7 {[%clk 0:00:36]} 38... Rd5 {[%clk
0:00:51.4]} 39. f4 {[%clk 0:00:36]} 39... Kd8 {[%clk 0:00:37.4]} 40. e4 {[%clk
0:00:34.1]} 40... Ra5 {[%clk 0:00:25]} 41. e5 {[%clk 0:00:32.4]} 41... Rxa4
{[%clk 0:00:24.8]} 42. Kxh5 {[%clk 0:00:32.2]} 42... Ke8 {[%clk 0:00:25.5]} 43.
Rf6 {[%clk 0:00:32.1]} 43... Ke7 {[%clk 0:00:25.9]} 44. Kg6 {[%clk 0:00:32.5]}
44... b5 {[%clk 0:00:20.2]} 45. Rf7+ {[%clk 0:00:32.9]} 45... Ke8 {[%clk
0:00:20.7]} 46. f5 {[%clk 0:00:33.2]} 1-0

[Event "Early-Titled-Tuesday-Blitz-September-26-2023"]
[Site "Chess.com"]
[Date "2023.09.26"]
[Round "9"]
[White "HajiyevKanan"]
[Black "Alexei_Gubajdullin"]
[Result "1/2-1/2"]
[WhiteElo "2491"]
[BlackElo "2703"]
[TimeControl "180+1"]
[EndTime "9:45:38 PDT"]
[Termination "Game drawn by 50-move rule"]

1. d4 {[%clk 0:03:00.9]} 1... Nf6 {[%clk 0:02:59]} 2. Nf3 {[%clk 0:03:01.5]}
2... g6 {[%clk 0:02:59.1]} 3. g3 {[%clk 0:03:01.8]} 3... Bg7 {[%clk 0:02:59.2]}
4. Bg2 {[%clk 0:03:02.7]} 4... O-O {[%clk 0:02:59.4]} 5. O-O {[%clk 0:03:03.4]}
5... d6 {[%clk 0:02:59.4]} 6. b3 {[%clk 0:03:04.1]} 6... a5 {[%clk 0:02:58.3]}
7. a3 {[%clk 0:03:02.1]} 7... a4 {[%clk 0:02:55.3]} 8. b4 {[%clk 0:03:02.3]}
8... d5 {[%clk 0:02:54.3]} 9. Ne5 {[%clk 0:03:02.2]} 9... Nbd7 {[%clk
0:02:53.9]} 10. Bb2 {[%clk 0:03:02.8]} 10... Nb6 {[%clk 0:02:52.9]} 11. Nd2
{[%clk 0:03:02]} 11... Nfd7 {[%clk 0:02:52.2]} 12. Nxd7 {[%clk 0:03:01.6]} 12...
Bxd7 {[%clk 0:02:52.1]} 13. e3 {[%clk 0:03:02.4]} 13... Bb5 {[%clk 0:02:51.6]}
14. Re1 {[%clk 0:03:03.1]} 14... c6 {[%clk 0:02:51.2]} 15. Rc1 {[%clk
0:03:03.3]} 15... Nc4 {[%clk 0:02:50.4]} 16. Nxc4 {[%clk 0:03:02.4]} 16... Bxc4
{[%clk 0:02:49.9]} 17. e4 {[%clk 0:02:59.2]} 17... dxe4 {[%clk 0:02:46.7]} 18.
Bxe4 {[%clk 0:02:55.8]} 18... e6 {[%clk 0:02:46.4]} 19. h4 {[%clk 0:02:54.9]}
19... Qb6 {[%clk 0:02:39.9]} 20. c3 {[%clk 0:02:50.1]} 20... Qb5 {[%clk
0:02:37]} 21. Qf3 {[%clk 0:02:47.4]} 21... Bd5 {[%clk 0:02:31.1]} 22. Qd3 {[%clk
0:02:41.1]} 22... Bxe4 {[%clk 0:02:29.7]} 23. Qxb5 {[%clk 0:02:36.9]} 23... cxb5
{[%clk 0:02:29.8]} 24. Rxe4 {[%clk 0:02:37.6]} 24... Rac8 {[%clk 0:02:25.5]} 25.
Rce1 {[%clk 0:02:35.3]} 25... Rfd8 {[%clk 0:02:24.3]} 26. g4 {[%clk 0:02:31.8]}
26... Rd5 {[%clk 0:02:23.1]} 27. Kg2 {[%clk 0:02:28]} 27... Kf8 {[%clk
0:02:19.4]} 28. R1e2 {[%clk 0:02:28.5]} 28... h5 {[%clk 0:02:13.9]} 29. g5
{[%clk 0:02:23.5]} 29... Ke7 {[%clk 0:02:11.7]} 30. f4 {[%clk 0:02:22.6]} 30...
Kd7 {[%clk 0:02:10.9]} 31. Kf3 {[%clk 0:02:21.7]} 31... Rc4 {[%clk 0:02:03.2]}
32. Ke3 {[%clk 0:02:09.1]} 32... Kc6 {[%clk 0:02:00.7]} 33. Kd3 {[%clk
0:02:05.6]} 33... Bf8 {[%clk 0:02:00.3]} 34. Re5 {[%clk 0:02:04.2]} 34... Bd6
{[%clk 0:02:00.2]} 35. Rf2 {[%clk 0:02:01.9]} 35... Bxe5 {[%clk 0:01:55.4]} 36.
fxe5 {[%clk 0:02:02.5]} 36... Rd7 {[%clk 0:01:54.8]} 37. Bc1 {[%clk 0:02:01.5]}
37... Kc7 {[%clk 0:01:50.3]} 38. Bd2 {[%clk 0:02:01.5]} 38... Kd8 {[%clk
0:01:50.2]} 39. Rf6 {[%clk 0:02:01.6]} 39... Ke8 {[%clk 0:01:49.9]} 40. Rf3
{[%clk 0:01:59.9]} 40... Rcc7 {[%clk 0:01:49.6]} 41. Rf6 {[%clk 0:01:59.8]}
41... Rd5 {[%clk 0:01:49.3]} 42. Rf3 {[%clk 0:01:59.1]} 42... Rcd7 {[%clk
0:01:49.5]} 43. Ke4 {[%clk 0:01:58.5]} 43... Kd8 {[%clk 0:01:48.4]} 44. Be1
{[%clk 0:01:58.8]} 44... Kc7 {[%clk 0:01:48.6]} 45. Bd2 {[%clk 0:01:53.3]} 45...
Kc6 {[%clk 0:01:48.5]} 46. Be1 {[%clk 0:01:49.4]} 46... Kc7 {[%clk 0:01:42.8]}
47. Bd2 {[%clk 0:01:48.6]} 47... Kd8 {[%clk 0:01:42.9]} 48. Be1 {[%clk
0:01:49.1]} 48... Ke8 {[%clk 0:01:40.6]} 49. Bd2 {[%clk 0:01:49.2]} 49... Rc7
{[%clk 0:01:40]} 50. Be1 {[%clk 0:01:48.3]} 50... Rc4 {[%clk 0:01:40.3]} 51. Bd2
{[%clk 0:01:44.3]} 51... Rd7 {[%clk 0:01:40.4]} 52. Be1 {[%clk 0:01:43.8]} 52...
Rdc7 {[%clk 0:01:40.9]} 53. Bd2 {[%clk 0:01:44.2]} 53... Kf8 {[%clk 0:01:41.1]}
54. Be1 {[%clk 0:01:44.7]} 54... Kg7 {[%clk 0:01:41.4]} 55. Bd2 {[%clk
0:01:45.2]} 55... Rc8 {[%clk 0:01:41.8]} 56. Be1 {[%clk 0:01:45.8]} 56... Kg8
{[%clk 0:01:41.5]} 57. Bd2 {[%clk 0:01:46.2]} 57... Rd8 {[%clk 0:01:41]} 58. Be1
{[%clk 0:01:45.7]} 58... Rd5 {[%clk 0:01:40.6]} 59. Bd2 {[%clk 0:01:45.7]} 59...
Rc8 {[%clk 0:01:40.9]} 60. Be1 {[%clk 0:01:45.8]} 60... Rcd8 {[%clk 0:01:39.3]}
61. Bd2 {[%clk 0:01:45]} 61... R8d7 {[%clk 0:01:39.2]} 62. Be1 {[%clk
0:01:45.5]} 62... Kf8 {[%clk 0:01:39.4]} 63. Bd2 {[%clk 0:01:45.8]} 63... Rc7
{[%clk 0:01:39.8]} 64. Be1 {[%clk 0:01:46]} 64... Ke8 {[%clk 0:01:39.4]} 65. Bd2
{[%clk 0:01:46.4]} 65... Rd8 {[%clk 0:01:38.8]} 66. Be1 {[%clk 0:01:45.1]} 66...
Rdc8 {[%clk 0:01:38.8]} 67. Bd2 {[%clk 0:01:45.6]} 67... Rc4 {[%clk 0:01:39]}
68. Be1 {[%clk 0:01:44.2]} 68... Rd8 {[%clk 0:01:36.6]} 69. Bd2 {[%clk
0:01:43.8]} 69... Rd5 {[%clk 0:01:34.5]} 70. Be1 {[%clk 0:01:43.6]} 70... Ke7
{[%clk 0:01:33.9]} 71. Bd2 {[%clk 0:01:44]} 71... Kf8 {[%clk 0:01:33.6]} 72. Be1
{[%clk 0:01:44.4]} 72... Kg8 {[%clk 0:01:33.8]} 73. Bd2 {[%clk 0:01:44.9]} 73...
Rd7 {[%clk 0:01:27.4]} 74. Be1 {[%clk 0:01:45]} 74... Rc8 {[%clk 0:01:27.2]} 75.
Bd2 {[%clk 0:01:45.1]} 75... Rcd8 {[%clk 0:01:26.9]} 76. Be1 {[%clk 0:01:45.5]}
76... Rf8 {[%clk 0:01:26.4]} 77. Bd2 {[%clk 0:01:44.8]} 77... Re8 {[%clk
0:01:26.3]} 78. Be1 {[%clk 0:01:44.8]} 78... Ree7 {[%clk 0:01:26.7]} 79. Bd2
{[%clk 0:01:45.1]} 79... Rd5 {[%clk 0:01:27]} 80. Be1 {[%clk 0:01:45.5]} 80...
Rc7 {[%clk 0:01:27.1]} 81. Bd2 {[%clk 0:01:45.8]} 81... Rc4 {[%clk 0:01:26]} 82.
Be1 {[%clk 0:01:46.1]} 82... b6 {[%clk 0:01:26]} 83. Bd2 {[%clk 0:01:46.4]}
83... Rc7 {[%clk 0:01:25.6]} 84. Be1 {[%clk 0:01:47]} 84... Rd8 {[%clk
0:01:25.9]} 85. Bd2 {[%clk 0:01:47.3]} 85... Rcd7 {[%clk 0:01:26.4]} 86. Be1
{[%clk 0:01:47.8]} 86... Rc8 {[%clk 0:01:26.9]} 87. Bd2 {[%clk 0:01:48.1]} 87...
Rcc7 {[%clk 0:01:27.3]} 88. Be1 {[%clk 0:01:48.7]} 88... Rc6 {[%clk 0:01:27.6]}
89. Bd2 {[%clk 0:01:49.2]} 89... Rc4 {[%clk 0:01:28]} 90. Be1 {[%clk 0:01:49.5]}
90... Rd5 {[%clk 0:01:28.5]} 91. Bd2 {[%clk 0:01:49.8]} 91... Rc8 {[%clk
0:01:28.8]} 92. Be1 {[%clk 0:01:50.3]} 92... Ra8 {[%clk 0:01:29.1]} 93. Bd2
{[%clk 0:01:50.7]} 93... Ra6 {[%clk 0:01:29.6]} 94. Be1 {[%clk 0:01:51.2]} 94...
Ra7 {[%clk 0:01:30.1]} 95. Bd2 {[%clk 0:01:51.9]} 95... Ra8 {[%clk 0:01:30.6]}
96. Be1 {[%clk 0:01:52.5]} 96... Rb8 {[%clk 0:01:31.2]} 97. Bd2 {[%clk 0:01:53]}
97... Rb7 {[%clk 0:01:31.8]} 98. Be1 {[%clk 0:01:53.6]} 98... Rbd7 {[%clk
0:01:32.2]} 99. Bd2 {[%clk 0:01:54.2]} 99... Rd8 {[%clk 0:01:32.7]} 100. Be1
{[%clk 0:01:54.7]} 100... Rf8 {[%clk 0:01:32.4]} 101. Bd2 {[%clk 0:01:55]}
101... Re8 {[%clk 0:01:32.5]} 102. Be1 {[%clk 0:01:55.4]} 102... Re7 {[%clk
0:01:33.1]} 103. Bd2 {[%clk 0:01:55.9]} 103... Red7 {[%clk 0:01:33.6]} 104. Be1
{[%clk 0:01:56.5]} 104... Rc7 {[%clk 0:01:34.1]} 105. Bd2 {[%clk 0:01:56.9]}
105... Rc4 {[%clk 0:01:34.4]} 106. Be1 {[%clk 0:01:57.3]} 106... Rd7 {[%clk
0:01:34.5]} 107. Bd2 {[%clk 0:01:57.5]} 107... Rc8 {[%clk 0:01:34.8]} 108. Be1
{[%clk 0:01:58]} 108... Rdc7 {[%clk 0:01:35.1]} 109. Bd2 {[%clk 0:01:58.3]}
109... Rb7 {[%clk 0:01:35.7]} 110. Be1 {[%clk 0:01:58.3]} 110... Ra7 {[%clk
0:01:36]} 111. Bd2 {[%clk 0:01:58.5]} 111... Ra6 {[%clk 0:01:36.3]} 112. Be1
{[%clk 0:01:58.9]} 112... Ra7 {[%clk 0:01:36.6]} 113. Bd2 {[%clk 0:01:59.2]}
113... Rcc7 {[%clk 0:01:37.1]} 114. Be1 {[%clk 0:01:59.7]} 114... Rc6 {[%clk
0:01:37.7]} 115. Bd2 {[%clk 0:02:00.3]} 115... Rac7 {[%clk 0:01:38]} 116. Be1
{[%clk 0:02:00.8]} 116... Rd7 {[%clk 0:01:38.4]} 117. Bd2 {[%clk 0:02:01]}
117... Re7 {[%clk 0:01:38]} 118. Be1 {[%clk 0:02:01.4]} 118... Re8 {[%clk
0:01:38.2]} 119. Bd2 {[%clk 0:02:01.9]} 119... Rd8 {[%clk 0:01:38.7]} 120. Be1
{[%clk 0:02:01.9]} 120... Rc7 {[%clk 0:01:39]} 121. Bd2 {[%clk 0:02:01.9]}
121... Rcc8 {[%clk 0:01:39.6]} 122. Be1 {[%clk 0:02:02.3]} 122... Rd7 {[%clk
0:01:40.1]} 123. Bd2 {[%clk 0:02:02.7]} 123... Kf8 {[%clk 0:01:40.4]} 124. Be1
{[%clk 0:02:03]} 124... Ke8 {[%clk 0:01:40.9]} 125. Bd2 {[%clk 0:02:03.7]}
125... Kd8 {[%clk 0:01:41.4]} 126. Be1 {[%clk 0:02:04.3]} 126... Kc7 {[%clk
0:01:41.9]} 127. Bd2 {[%clk 0:02:04.8]} 127... Kc6 {[%clk 0:01:42.4]} 128. Be1
{[%clk 0:02:05.3]} 128... Rcd8 {[%clk 0:01:42.8]} 129. Bd2 {[%clk 0:02:05.3]}
129... Re8 {[%clk 0:01:42.8]} 130. Be1 {[%clk 0:02:05.7]} 130... Kb7 {[%clk
0:01:43.3]} 131. Bd2 {[%clk 0:02:05.9]} 131... Kc8 {[%clk 0:01:44.1]} 132. Be1
{[%clk 0:02:06.3]} 132... Kd8 {[%clk 0:01:44.1]} 1/2-1/2

[Event "Early-Titled-Tuesday-Blitz-September-26-2023"]
[Site "Chess.com"]
[Date "2023.09.26"]
[Round "9"]
[White "Oleksandr_Bortnyk"]
[Black "JimDiGrease"]
[Result "0-1"]
[WhiteElo "3017"]
[BlackElo "2866"]
[TimeControl "180+1"]
[EndTime "9:45:40 PDT"]
[Termination "JimDiGrease won by resignation"]

1. e4 {[%clk 0:03:00.9]} 1... c5 {[%clk 0:02:59.7]} 2. c3 {[%clk 0:03:00.9]}
2... d5 {[%clk 0:02:56.2]} 3. exd5 {[%clk 0:03:01.8]} 3... Qxd5 {[%clk
0:02:55.7]} 4. d4 {[%clk 0:03:00]} 4... g6 {[%clk 0:02:51.5]} 5. Be3 {[%clk
0:02:59.4]} 5... cxd4 {[%clk 0:02:45.5]} 6. cxd4 {[%clk 0:03:00.3]} 6... Bg7
{[%clk 0:02:35.9]} 7. Nf3 {[%clk 0:03:00.7]} 7... Nf6 {[%clk 0:02:34.9]} 8. Nc3
{[%clk 0:02:56.7]} 8... Qd8 {[%clk 0:02:32.9]} 9. Bc4 {[%clk 0:02:56.1]} 9...
O-O {[%clk 0:02:33.1]} 10. a3 {[%clk 0:02:54.2]} 10... b6 {[%clk 0:02:31.2]} 11.
Ne5 {[%clk 0:02:51.6]} 11... Bb7 {[%clk 0:02:28.9]} 12. O-O {[%clk 0:02:46]}
12... Nc6 {[%clk 0:02:27.2]} 13. Qb3 {[%clk 0:02:39]} 13... Qe8 {[%clk
0:01:52.3]} 14. Bb5 {[%clk 0:02:05.5]} 14... Na5 {[%clk 0:01:18.1]} 15. Qb4
{[%clk 0:02:04.1]} 15... Qd8 {[%clk 0:01:14.6]} 16. Bg5 {[%clk 0:02:01.1]} 16...
Nd5 {[%clk 0:01:10.2]} 17. Qa4 {[%clk 0:01:50.8]} 17... f6 {[%clk 0:01:08.7]}
18. Nc6 {[%clk 0:01:28.8]} 18... Bxc6 {[%clk 0:00:53.1]} 19. Bxc6 {[%clk
0:01:23.7]} 19... Nxc3 {[%clk 0:00:53.7]} 20. bxc3 {[%clk 0:01:16.2]} 20... Nxc6
{[%clk 0:00:54.3]} 21. Qxc6 {[%clk 0:01:07.6]} 21... fxg5 {[%clk 0:00:54.3]} 22.
Rfe1 {[%clk 0:01:08.5]} 22... Bf6 {[%clk 0:00:54.3]} 23. Re3 {[%clk 0:01:07.2]}
23... Rc8 {[%clk 0:00:53.6]} 24. Qe4 {[%clk 0:01:07.7]} 24... Qd6 {[%clk
0:00:51.7]} 25. g3 {[%clk 0:01:08.3]} 25... Rfd8 {[%clk 0:00:47.7]} 26. a4
{[%clk 0:01:08.9]} 26... Qd5 {[%clk 0:00:47.6]} 27. Qg4 {[%clk 0:01:09.2]} 27...
h5 {[%clk 0:00:46]} 28. Qe2 {[%clk 0:01:09.1]} 28... Rc4 {[%clk 0:00:42]} 29. h3
{[%clk 0:00:59.7]} 29... Rd7 {[%clk 0:00:41]} 30. Re1 {[%clk 0:00:44]} 30...
Rdc7 {[%clk 0:00:39.9]} 31. Qb2 {[%clk 0:00:38.8]} 31... Kf7 {[%clk 0:00:32.6]}
32. Kh2 {[%clk 0:00:38.3]} 32... Qc6 {[%clk 0:00:27.9]} 33. Re6 {[%clk
0:00:35.4]} 33... Qxe6 {[%clk 0:00:27.8]} 34. Rxe6 {[%clk 0:00:36.3]} 34... Kxe6
{[%clk 0:00:28.7]} 35. Qa2 {[%clk 0:00:33.6]} 35... Kf7 {[%clk 0:00:28.2]} 36.
a5 {[%clk 0:00:28.8]} 36... bxa5 {[%clk 0:00:28.2]} 37. Qxa5 {[%clk 0:00:29.7]}
37... Kg7 {[%clk 0:00:28.7]} 38. d5 {[%clk 0:00:26.8]} 38... Rxc3 {[%clk
0:00:28.3]} 39. Qa6 {[%clk 0:00:25]} 39... Rd7 {[%clk 0:00:26.1]} 40. Qb5 {[%clk
0:00:19.5]} 40... Rcc7 {[%clk 0:00:24.9]} 41. Kg2 {[%clk 0:00:19.5]} 41... Rd6
{[%clk 0:00:25.1]} 42. Qa5 {[%clk 0:00:18.3]} 42... Rcd7 {[%clk 0:00:25.4]} 43.
g4 {[%clk 0:00:19.1]} 43... Rxd5 {[%clk 0:00:25.5]} 44. Qa6 {[%clk 0:00:19.6]}
44... hxg4 {[%clk 0:00:26]} 45. hxg4 {[%clk 0:00:20.5]} 45... Rd2 {[%clk
0:00:24.7]} 46. Qa4 {[%clk 0:00:20.1]} 46... Rc7 {[%clk 0:00:22.9]} 47. Qa5
{[%clk 0:00:18.4]} 47... Rcc2 {[%clk 0:00:22.7]} 48. Qxa7 {[%clk 0:00:17.2]}
48... Rxf2+ {[%clk 0:00:23.3]} 49. Kg1 {[%clk 0:00:16.3]} 49... Rfd2 {[%clk
0:00:23.4]} 0-1

[Event "Early-Titled-Tuesday-Blitz-September-26-2023"]
[Site "Chess.com"]
[Date "2023.09.26"]
[Round "9"]
[White "xxysoul6"]
[Black "KaydenTroffChess"]
[Result "1/2-1/2"]
[WhiteElo "3004"]
[BlackElo "2783"]
[TimeControl "180+1"]
[EndTime "9:45:40 PDT"]
[Termination "Game drawn by repetition"]

1. e4 {[%clk 0:03:00.9]} 1... c5 {[%clk 0:03:00]} 2. Nf3 {[%clk 0:02:59.3]} 2...
g6 {[%clk 0:03:00.7]} 3. h4 {[%clk 0:02:57.6]} 3... h6 {[%clk 0:02:40.9]} 4. d4
{[%clk 0:02:53]} 4... cxd4 {[%clk 0:02:40.9]} 5. Nxd4 {[%clk 0:02:47.3]} 5...
Bg7 {[%clk 0:02:40.7]} 6. Nc3 {[%clk 0:02:43]} 6... Nc6 {[%clk 0:02:40.8]} 7.
Be3 {[%clk 0:02:43.2]} 7... Nf6 {[%clk 0:02:41.1]} 8. Be2 {[%clk 0:02:41]} 8...
O-O {[%clk 0:02:09.5]} 9. Qd2 {[%clk 0:02:37]} 9... d5 {[%clk 0:02:00]} 10. Nxc6
{[%clk 0:02:32]} 10... bxc6 {[%clk 0:01:59.6]} 11. e5 {[%clk 0:02:32.6]} 11...
Ne4 {[%clk 0:01:59.3]} 12. Nxe4 {[%clk 0:02:29]} 12... dxe4 {[%clk 0:02:00.2]}
13. Bxh6 {[%clk 0:02:17.8]} 13... Qxd2+ {[%clk 0:01:54.4]} 14. Bxd2 {[%clk
0:02:18.7]} 14... Bxe5 {[%clk 0:01:54.9]} 15. O-O-O {[%clk 0:02:19.2]} 15... Rb8
{[%clk 0:01:50.5]} 16. b3 {[%clk 0:02:17.9]} 16... Be6 {[%clk 0:01:16.2]} 17. h5
{[%clk 0:02:16.7]} 17... a5 {[%clk 0:01:13]} 18. a4 {[%clk 0:02:08.9]} 18... c5
{[%clk 0:01:06.6]} 19. Bxa5 {[%clk 0:01:55.8]} 19... c4 {[%clk 0:01:06.8]} 20.
b4 {[%clk 0:01:53.1]} 20... Bc3 {[%clk 0:00:37.5]} 21. Rh4 {[%clk 0:01:48.3]}
21... Bxb4 {[%clk 0:00:26.7]} 22. Bxb4 {[%clk 0:01:47.2]} 22... Rxb4 {[%clk
0:00:27.2]} 23. Rxe4 {[%clk 0:01:47.4]} 23... gxh5 {[%clk 0:00:16.6]} 24. Rdd4
{[%clk 0:01:22.5]} 24... Rxa4 {[%clk 0:00:13.6]} 25. Bxc4 {[%clk 0:01:22.1]}
25... Bxc4 {[%clk 0:00:13.8]} 26. Rxc4 {[%clk 0:01:23]} 26... Ra1+ {[%clk
0:00:13.8]} 27. Kd2 {[%clk 0:01:23.3]} 27... Rg1 {[%clk 0:00:14.1]} 28. g3
{[%clk 0:01:21.2]} 28... e6 {[%clk 0:00:14.3]} 29. Re5 {[%clk 0:01:18.5]} 29...
Rd8+ {[%clk 0:00:14.2]} 30. Ke2 {[%clk 0:01:18.2]} 30... Rgd1 {[%clk 0:00:12.3]}
31. Rxh5 {[%clk 0:01:18.1]} 31... Kg7 {[%clk 0:00:12.9]} 32. Kf3 {[%clk
0:01:13.9]} 32... R8d2 {[%clk 0:00:11.6]} 33. Rg4+ {[%clk 0:01:10.8]} 33... Kf6
{[%clk 0:00:11.4]} 34. Rf4+ {[%clk 0:01:09.7]} 34... Kg6 {[%clk 0:00:11.4]} 35.
Rh8 {[%clk 0:01:07.5]} 35... Rxc2 {[%clk 0:00:10.2]} 36. Rg8+ {[%clk 0:01:05.5]}
36... Kh7 {[%clk 0:00:10.6]} 37. Rg5 {[%clk 0:01:03.8]} 37... Kh6 {[%clk
0:00:11]} 38. Rg8 {[%clk 0:00:56.4]} 38... Kh7 {[%clk 0:00:11.1]} 39. Rfg4
{[%clk 0:00:54.5]} 39... Rdd2 {[%clk 0:00:09.8]} 40. R4g7+ {[%clk 0:00:48.4]}
40... Kh6 {[%clk 0:00:09.3]} 41. Rg4 {[%clk 0:00:32.5]} 41... Rxf2+ {[%clk
0:00:08.9]} 42. Ke3 {[%clk 0:00:33]} 42... Rfe2+ {[%clk 0:00:08.7]} 43. Kf3
{[%clk 0:00:33.3]} 43... Rf2+ {[%clk 0:00:08.8]} 44. Ke3 {[%clk 0:00:33.9]}
44... Rfe2+ {[%clk 0:00:08.6]} 45. Kd3 {[%clk 0:00:32.8]} 45... Red2+ {[%clk
0:00:08.1]} 46. Ke3 {[%clk 0:00:33.1]} 46... Kh7 {[%clk 0:00:07.2]} 47. R8g7+
{[%clk 0:00:29.9]} 47... Kh6 {[%clk 0:00:07.6]} 48. Rg8 {[%clk 0:00:29.5]} 48...
Re2+ {[%clk 0:00:07.5]} 1/2-1/2

[Event "Early-Titled-Tuesday-Blitz-September-26-2023"]
[Site "Chess.com"]
[Date "2023.09.26"]
[Round "9"]
[White "Defenstrator"]
[Black "zajka-molotok"]
[Result "0-1"]
[WhiteElo "2373"]
[BlackElo "2535"]
[TimeControl "180+1"]
[EndTime "9:45:41 PDT"]
[Termination "zajka-molotok won by resignation"]

1. c4 {[%clk 0:02:56.4]} 1... e5 {[%clk 0:02:56.3]} 2. Nf3 {[%clk 0:02:51.6]}
2... Nc6 {[%clk 0:02:53.9]} 3. d4 {[%clk 0:02:51.5]} 3... e4 {[%clk 0:02:49.1]}
4. Ng5 {[%clk 0:02:32]} 4... f5 {[%clk 0:02:44.7]} 5. Nh3 {[%clk 0:02:21.2]}
5... Nf6 {[%clk 0:02:42.3]} 6. Bg5 {[%clk 0:02:12.8]} 6... h6 {[%clk 0:02:35.8]}
7. Bxf6 {[%clk 0:02:12.7]} 7... Qxf6 {[%clk 0:02:36.7]} 8. e3 {[%clk 0:02:12.6]}
8... g5 {[%clk 0:02:33]} 9. Nc3 {[%clk 0:02:11.8]} 9... Bb4 {[%clk 0:02:26.1]}
10. f3 {[%clk 0:02:02.4]} 10... exf3 {[%clk 0:02:14.6]} 11. gxf3 {[%clk
0:01:55.3]} 11... d6 {[%clk 0:02:13]} 12. Nf2 {[%clk 0:01:39.6]} 12... Bxc3+
{[%clk 0:01:59.6]} 13. bxc3 {[%clk 0:01:40.4]} 13... Bd7 {[%clk 0:02:00.1]} 14.
Rb1 {[%clk 0:01:33.4]} 14... O-O-O {[%clk 0:01:59.6]} 15. Qb3 {[%clk 0:01:24.2]}
15... b6 {[%clk 0:01:58.9]} 16. c5 {[%clk 0:01:22.4]} 16... dxc5 {[%clk
0:01:57]} 17. dxc5 {[%clk 0:01:16.4]} 17... Rhe8 {[%clk 0:01:53]} 18. Ba6+
{[%clk 0:01:04.6]} 18... Kb8 {[%clk 0:01:52.6]} 19. cxb6 {[%clk 0:01:04.9]}
19... axb6 {[%clk 0:01:46.1]} 20. O-O {[%clk 0:00:55.8]} 20... Rxe3 {[%clk
0:01:43.8]} 21. Rbd1 {[%clk 0:00:47.1]} 21... Qxc3 {[%clk 0:01:35.6]} 22. Qf7
{[%clk 0:00:40.6]} 22... Ne5 {[%clk 0:01:26.1]} 23. Qd5 {[%clk 0:00:31.1]} 23...
Qc6 {[%clk 0:01:12.1]} 24. Qxc6 {[%clk 0:00:26]} 24... Nxc6 {[%clk 0:01:13]} 25.
Bb5 {[%clk 0:00:22.3]} 25... Ree8 {[%clk 0:01:04.7]} 26. Rxd7 {[%clk 0:00:21.8]}
26... Rxd7 {[%clk 0:01:03.3]} 27. Bxc6 {[%clk 0:00:22.7]} 27... Rde7 {[%clk
0:01:03.3]} 28. Bxe8 {[%clk 0:00:22.7]} 28... Rxe8 {[%clk 0:01:03.9]} 29. Rd1
{[%clk 0:00:20.4]} 29... Re2 {[%clk 0:01:03]} 30. a4 {[%clk 0:00:18.7]} 30...
Ra2 {[%clk 0:01:01.7]} 31. Rd4 {[%clk 0:00:19]} 31... c5 {[%clk 0:00:58.5]} 32.
Rd6 {[%clk 0:00:18.9]} 32... Kc7 {[%clk 0:00:58.2]} 33. Rxh6 {[%clk 0:00:18.7]}
33... Rxa4 {[%clk 0:00:58.4]} 34. Rh5 {[%clk 0:00:18]} 34... c4 {[%clk
0:00:51.5]} 35. Rxg5 {[%clk 0:00:18.8]} 35... c3 {[%clk 0:00:52.1]} 36. Rxf5
{[%clk 0:00:17.3]} 36... c2 {[%clk 0:00:52]} 37. Nd3 {[%clk 0:00:17.4]} 37...
Rd4 {[%clk 0:00:48.5]} 38. Rf7+ {[%clk 0:00:16]} 38... Kb8 {[%clk 0:00:41.8]}
39. Rf8+ {[%clk 0:00:11.6]} 39... Kb7 {[%clk 0:00:41.7]} 40. Rf7+ {[%clk
0:00:12.2]} 40... Kc6 {[%clk 0:00:37.4]} 41. Ne5+ {[%clk 0:00:12]} 41... Kd6
{[%clk 0:00:34]} 42. Rf6+ {[%clk 0:00:06.2]} 42... Kxe5 {[%clk 0:00:31.6]} 43.
Rc6 {[%clk 0:00:07]} 43... Rd1+ {[%clk 0:00:31.8]} 0-1